bitfinex/quotes_ETHUSD_20240716
["timestamp","ask_amount","ask_price","bid_price","bid_amount"]
[1721151269336,0.55,3463.1,3462.3,5.34421]
[1721151269654,0.57719895,3463.1,3462.4,2.88816]
[1721151270439,0.57719895,3463.1,3462.5,2.88807]
[1721151270968,0.57719895,3463.1,3462.5,2.88802]
[1721151270969,0.02719895,3463.1,3462.5,2.88802]
[1721151271180,0.02719895,3463.1,3462.7,2.456]
[1721151271337,3.0,3463.3,3462.7,5.34389]
[1721151271537,3.0,3463.5,3462.7,5.34389]
[1721151271764,0.55,3463.4,3462.7,5.34389]
[1721151272170,0.02745687,3463.3,3462.7,5.34389]
[1721151272369,0.02745687,3463.3,3462.8,2.88783]
[1721151274687,0.02745687,3463.2,3462.9,5.34374]
[1721151275066,3.55,3463.6,3462.9,5.34374]
[1721151275272,0.02745687,3463.1,3462.9,5.34374]
[1721151275472,3.55,3463.6,3462.9,5.34374]
[1721151275685,0.02745687,3463.0,3462.9,5.34374]
[1721151275893,6.43719,3463.6,3462.9,5.34374]
[1721151276087,0.02732487,3463.0,3462.9,5.34374]
[1721151276283,3.0,3463.6,3463.1,2.88754]
[1721151276588,5.88692,3463.9,3463.1,2.8875]
[1721151276901,3.43701,3463.8,3463.1,2.8875]
[1721151277109,3.0,3463.7,3463.1,2.8875]
[1721151277465,3.0,3463.7,3462.9,5.34369]
[1721151278395,3.0,3463.7,3463.0,2.88761]
[1721151279477,5.29505,3463.5,3462.8,2.454]
[1721151279978,0.55,3463.4,3462.8,5.34176]
[1721151280189,3.0,3463.7,3463.0,2.88765]
[1721151280379,0.55,3463.6,3463.0,2.88765]
[1721151280986,0.55,3463.6,3462.9,2.88773]
[1721151281591,0.55,3463.6,3462.9,5.77542]
[1721151283079,0.55,3463.6,3462.8,2.454]
[1721151283599,0.55,3463.6,3462.9,2.88773]
[1721151283783,0.55,3463.6,3463.0,2.88766]
[1721151284105,0.02731167,3463.5,3463.0,2.88766]
[1721151286101,3.437,3463.8,3463.0,2.88766]
[1721151286300,0.02731167,3463.4,3463.0,2.88766]
[1721151286605,0.02731167,3463.3,3463.0,2.88766]
[1721151286800,3.437,3463.8,3463.0,3.710599]
[1721151287112,0.02731167,3463.7,3463.0,2.88766]
[1721151287815,2.91439167,3463.7,3463.0,2.88766]
[1721151288132,0.55,3463.6,3463.0,2.88766]
[1721151288606,0.02731167,3463.5,3463.0,2.88766]
[1721151290785,0.55,3463.8,3463.0,5.77526]
[1721151291002,0.02730803,3463.7,3463.0,5.77526]
[1721151291207,0.02730803,3463.7,3463.1,2.88756]
[1721151293894,2.91440803,3463.7,3462.8,5.34179]
[1721151294091,0.55,3463.6,3462.8,5.34179]
[1721151294426,0.02743289,3463.5,3462.8,5.34179]
[1721151294581,0.02743289,3463.5,3463.0,2.88761]
[1721151295293,0.02743289,3463.5,3463.0,5.77522]
[1721151296397,0.02743289,3463.5,3463.1,2.88758]
[1721151296602,0.55,3463.8,3463.1,2.88758]
[1721151296819,0.02743289,3463.7,3463.1,2.88758]
[1721151298291,0.02743289,3463.7,3462.9,2.4367]
[1721151298480,0.02743289,3463.7,3463.6,8.22832]
[1721151298685,2.11478882,3464.6,3464.1,2.88669]
[1721151298885,7.35,3464.7,3464.1,5.77337]
[1721151298886,2.11478882,3464.7,3464.1,5.77337]
[1721151299105,0.02657474,3464.5,3464.2,2.88661]
[1721151299309,2.88605,3465.0,3464.4,2.454]
[1721151299310,2.11478882,3465.0,3464.4,2.454]
[1721151299611,2.4477,3465.2,3464.4,2.454]
[1721151299612,2.11478882,3465.1,3464.5,2.8864]
[1721151299787,4.56248882,3465.2,3464.5,2.8864]
[1721151300124,2.88482,3466.5,3464.4,2.454]
[1721151300125,2.11630504,3465.4,3464.8,2.454]
[1721151300287,2.11630504,3465.7,3465.2,5.33976]
[1721151300487,2.11630504,3466.0,3465.4,2.88566]
[1721151300706,5.00144504,3466.1,3465.2,2.88576]
[1721151301011,2.4599,3465.6,3464.8,2.88616]
[1721151301214,2.4599,3465.6,3464.4,2.454]
[1721151301215,2.8857,3465.4,3464.5,2.8864]
[1721151301425,2.8857,3465.4,3464.6,2.88633]
[1721151301631,5.34541,3465.6,3464.8,2.88614]
[1721151301782,0.55,3465.5,3464.8,2.88614]
[1721151301978,3.43563,3465.5,3464.4,5.34047]
[1721151302178,2.8858,3465.3,3464.4,5.34047]
[1721151302382,0.55,3465.2,3464.4,5.34047]
[1721151302619,0.55,3465.2,3463.6,2.4833]
[1721151302620,2.88599,3465.1,3464.0,2.454]
[1721151302792,3.43606,3465.0,3464.2,2.88666]
[1721151303924,3.43606,3465.0,3464.0,5.34083]
[1721151303925,1.7,3465.4,3464.5,2.88641]
[1721151304108,0.55,3465.3,3464.5,2.88641]
[1721151304319,7.99885238,3465.5,3464.8,2.454]
[1721151304320,3.0,3465.5,3464.8,2.454]
[1721151304523,5.88565,3465.5,3464.8,2.454]
[1721151304683,2.88565,3465.5,3464.8,2.454]
[1721151304882,2.4599,3465.6,3464.8,2.454]
[1721151305091,2.8856,3465.5,3464.8,2.454]
[1721151305286,2.8857,3465.4,3464.8,2.454]
[1721151305582,2.88584,3465.2,3464.4,2.454]
[1721151305783,0.55,3465.1,3464.5,2.88639]
[1721151306294,3.43593,3465.1,3464.4,5.34049]
[1721151306608,0.55,3465.1,3464.4,5.34049]
[1721151306987,3.43592,3465.1,3464.2,2.88661]
[1721151307185,3.43592,3465.1,3464.3,2.88657]
[1721151307383,3.43592,3465.1,3464.2,2.88661]
[1721151307616,3.43592,3465.1,3464.3,2.88658]
[1721151307820,0.55,3465.1,3464.4,2.88648]
[1721151308020,0.55,3465.3,3464.4,2.88648]
[1721151308398,2.88592,3465.1,3464.4,5.34048]
[1721151308598,0.55,3465.0,3464.4,5.34048]
[1721151309190,0.55,3465.2,3464.6,2.88633]
[1721151309523,2.88572,3465.4,3464.7,2.88623]
[1721151309821,0.55,3465.3,3464.7,2.88623]
[1721151310205,2.88586,3465.2,3464.4,2.454]
[1721151310410,0.55,3465.1,3464.4,5.34049]
[1721151311222,2.88602,3465.0,3464.2,2.88666]
[1721151311400,5.80576,3464.9,3464.1,2.88672]
[1721151311616,5.80576,3464.9,3464.2,2.88666]
[1721151311948,2.88643,3464.5,3463.6,2.88711]
[1721151312156,2.88643,3464.5,3463.7,2.88708]
[1721151312306,0.55,3464.4,3463.8,2.88699]
[1721151313037,2.4815,3464.3,3463.1,2.454]
[1721151313242,2.88675,3464.1,3463.3,2.88736]
[1721151313646,0.55,3464.0,3463.3,2.88736]
[1721151314016,0.02699395,3463.9,3463.3,2.88736]
[1721151314219,0.02699395,3463.9,3463.4,2.88733]
[1721151317949,0.02699395,3463.9,3463.2,2.88745]
[1721151318156,2.88708,3463.7,3463.1,2.454]
[1721151318323,2.394,3463.5,3462.8,2.88777]
[1721151318528,2.394,3463.5,3462.7,5.34189]
[1721151318529,2.394,3463.5,3462.9,2.88774]
[1721151318729,2.394,3463.5,3463.0,2.88766]
[1721151319050,0.02688915,3463.4,3462.8,2.88782]
[1721151319254,0.02688915,3463.4,3462.7,2.454]
[1721151319553,3.46427915,3463.4,3462.7,2.454]
[1721151319923,2.88756,3463.2,3462.4,2.88808]
[1721151320139,0.55,3463.1,3462.4,2.88808]
[1721151320529,0.02685891,3463.0,3462.5,2.88807]
[1721151320929,0.02685891,3463.0,3462.5,3.711085]
[1721151321452,0.02685891,3463.0,3462.7,5.34184]
[1721151321646,0.55,3463.3,3462.7,5.34184]
[1721151321840,2.394,3463.5,3462.7,5.34184]
[1721151321841,0.02642247,3463.2,3462.7,5.34184]
[1721151322027,0.55,3463.4,3462.7,5.34184]
[1721151322229,0.02635081,3463.3,3462.7,5.34184]
[1721151322735,0.02635081,3463.3,3462.8,2.88783]
[1721151327356,0.02635081,3463.3,3463.0,2.8876]
[1721151327723,2.88709,3463.7,3463.0,2.8876]
[1721151327924,2.3022042,3463.2,3462.6,2.88794]
[1721151328154,2.2759,3463.2,3462.6,2.88794]
[1721151328332,0.02630218,3463.1,3462.7,2.88791]
[1721151329357,0.57630218,3463.1,3462.5,2.88808]
[1721151329560,0.57630218,3463.1,3462.3,5.34219]
[1721151330059,3.46393218,3463.1,3462.2,2.88831]
[1721151330288,3.46393218,3463.1,3462.3,2.88825]
[1721151330556,3.46393218,3463.1,3462.2,2.88828]
[1721151330762,2.88767,3463.0,3462.2,2.88828]
[1721151330965,3.43777,3462.9,3462.2,2.88828]
[1721151331156,3.46398438,3462.9,3462.2,2.88828]
[1721151332770,0.57621438,3462.9,3462.3,2.88824]
[1721151333066,0.02621438,3462.9,3462.3,2.88824]
[1721151333267,2.88768,3463.0,3462.3,2.88824]
[1721151333558,0.02621438,3462.8,3462.5,2.88808]
[1721151333761,0.55,3463.1,3462.6,2.88799]
[1721151333929,0.02621438,3462.7,3462.6,2.88799]
[1721151334131,0.55,3463.1,3462.6,3.710943]
[1721151334339,0.55,3463.1,3462.7,2.88791]
[1721151334539,0.55,3463.1,3462.6,2.88793]
[1721151334540,5.16309,3463.6,3462.8,2.88782]
[1721151334769,3.0,3463.5,3462.8,2.88782]
[1721151335072,2.2759,3463.6,3462.7,2.454]
[1721151335250,2.2759,3463.6,3463.1,2.88757]
[1721151335446,2.2759,3463.6,3462.7,2.454]
[1721151335649,2.2759,3463.6,3463.0,2.88759]
[1721151335871,3.0,3463.9,3463.4,2.88728]
[1721151336175,2.2521,3464.0,3463.4,2.88728]
[1721151336972,2.88654,3464.4,3463.5,2.88719]
[1721151337180,2.88661,3464.3,3463.5,2.88719]
[1721151337473,5.7731,3464.4,3463.5,2.88719]
[1721151337694,2.88654,3464.4,3463.5,2.88719]
[1721151337973,0.55,3464.3,3463.5,2.88719]
[1721151338340,3.55,3464.3,3463.5,2.88719]
[1721151339171,3.43658,3464.3,3463.5,2.88719]
[1721151339345,3.0,3464.2,3463.5,2.88719]
[1721151339546,0.55,3464.1,3463.5,2.88719]
[1721151339793,0.55,3464.1,3463.3,2.88735]
[1721151340298,0.55,3464.1,3463.4,2.88733]
[1721151340439,0.55,3464.1,3463.5,2.88725]
[1721151341461,5.22525,3464.5,3463.5,2.88725]
[1721151341462,0.55,3464.3,3463.8,2.88698]
[1721151341778,2.88624,3464.8,3464.0,2.88676]
[1721151342188,2.88624,3464.8,3464.1,2.88675]
[1721151342341,2.88624,3464.8,3464.1,2.80010064]
[1721151342884,0.55,3464.7,3464.1,2.80010064]
[1721151343444,0.55,3464.8,3464.1,2.80010064]
[1721151343896,2.4864,3464.9,3464.1,2.80010064]
[1721151344051,0.02650966,3464.7,3464.1,2.80010064]
[1721151344252,2.4864,3464.9,3464.1,2.80010064]
[1721151344461,0.02650966,3464.8,3464.1,2.80010064]
[1721151344762,0.02650966,3464.8,3464.3,2.88653]
[1721151345249,0.57650966,3464.8,3464.3,2.88653]
[1721151346271,0.57650966,3464.8,3464.1,5.68678064]
[1721151346487,3.46267966,3464.8,3464.1,2.88674]
[1721151347349,0.57650966,3464.8,3464.3,2.88651]
[1721151347582,0.02650966,3464.8,3464.5,2.8864]
[1721151347774,0.02650966,3464.8,3464.7,2.88625]
[1721151347984,12.34241616,3465.7,3464.9,2.88601]
[1721151347985,7.35,3465.7,3464.9,2.88601]
[1721151348277,2.3866,3465.8,3464.9,2.88601]
[1721151348654,2.3866,3465.8,3465.0,2.88595]
[1721151348960,2.3866,3465.8,3464.7,5.34021]
[1721151348961,2.88542,3465.7,3464.7,5.34021]
[1721151349159,3.0,3465.6,3464.7,5.34021]
[1721151349362,3.0,3465.6,3464.8,2.8861]
[1721151349687,3.0,3465.6,3464.9,2.88606]
[1721151349884,0.55,3465.5,3464.9,2.88606]
[1721151350247,0.55,3465.5,3464.3,2.454]
[1721151350472,0.55,3465.5,3461.4,2.11214309]
[1721151350473,2.4416,3465.1,3464.4,2.88642]
[1721151350673,2.9916,3465.5,3464.7,2.88617]
[1721151350861,3.0,3465.4,3464.7,5.77234]
[1721151351061,0.55,3465.3,3464.7,5.77234]
[1721151351467,0.55,3465.4,3464.9,2.886]
[1721151351665,3.55,3465.6,3464.9,2.886]
[1721151352254,3.55,3465.6,3465.0,2.88599]
[1721151352574,0.55,3465.6,3465.1,2.8859]
[1721151352776,2.88551,3465.6,3464.9,2.886]
[1721151353073,0.55,3465.7,3465.0,2.88595]
[1721151353384,2.8855,3465.6,3464.8,2.8861]
[1721151353684,0.55,3465.5,3464.8,2.8861]
[1721151354258,0.55,3465.5,3464.9,2.88607]
[1721151354777,7.35,3466.6,3465.3,2.88574]
[1721151354778,5.88501,3466.2,3465.3,2.88574]
[1721151355087,2.8851,3466.1,3465.3,2.88574]
[1721151355302,3.0,3466.0,3465.3,2.88574]
[1721151355684,2.3826,3466.4,3465.6,2.88544]
[1721151356186,2.88475,3466.5,3465.6,2.88544]
[1721151356390,2.88467,3466.6,3465.7,2.88541]
[1721151356581,2.3316,3466.7,3465.8,2.9429815]
[1721151356784,2.88468,3466.6,3465.8,2.88528]
[1721151356980,2.88477,3466.5,3465.8,2.88528]
[1721151357596,2.88487,3466.4,3465.6,2.88544]
[1721151357970,2.88468,3466.6,3465.1,2.454]
[1721151357971,2.88521,3466.0,3465.1,2.88589]
[1721151358176,5.21681,3466.0,3465.2,2.88578]
[1721151358371,5.21681,3466.0,3465.0,2.2554]
[1721151358571,2.88539,3465.8,3464.6,5.77257]
[1721151358782,2.8855,3465.6,3464.6,5.77257]
[1721151359108,2.8855,3465.6,3464.4,2.454]
[1721151359109,2.88592,3465.1,3464.4,2.454]
[1721151359279,3.436,3465.0,3464.2,2.88666]
[1721151359483,3.436,3465.0,3464.0,7.68843]
[1721151359718,2.88635,3464.6,3463.9,2.88691]
[1721151360005,0.55,3464.5,3463.9,2.88691]
[1721151360319,0.55,3464.5,3463.5,5.3412]
[1721151360320,0.027116,3464.5,3463.5,5.3412]
[1721151360522,0.027116,3464.5,3463.3,2.88741]
[1721151360523,2.88674,3464.2,3463.3,2.88741]
[1721151361218,0.026965,3464.1,3463.3,2.88741]
[1721151362016,0.026965,3464.1,3463.4,2.88733]
[1721151362516,0.026965,3464.0,3463.4,2.88733]
[1721151362835,0.026965,3464.0,3463.1,5.34157]
[1721151363123,2.88725,3463.5,3462.6,6.91092965]
[1721151363280,2.88761,3463.1,3462.2,2.88829]
[1721151363682,0.026965,3463.0,3462.1,2.8884]
[1721151364088,2.88786,3462.8,3461.9,5.34258]
[1721151364303,2.914635,3463.0,3461.8,0.0191311]
[1721151364304,2.88793,3462.7,3461.8,0.0191311]
[1721151364517,0.026965,3462.7,3461.8,0.0191311]
[1721151364986,2.88824,3462.4,3461.8,0.0191311]
[1721151365738,2.91471715,3462.3,3461.8,0.0191311]
[1721151366306,0.02646715,3462.3,3461.8,0.0191311]
[1721151366626,2.88826,3462.3,3461.8,0.0191311]
[1721151366932,0.02641672,3462.2,3461.8,0.0191311]
[1721151367296,2.88826,3462.3,3461.8,0.0191311]
[1721151367542,2.88858,3461.9,3461.8,0.0191311]
[1721151367929,3.46497857,3461.9,3461.8,0.0191311]
[1721151368128,6.35355857,3461.9,3461.8,0.0191311]
[1721151369741,13.98813857,3461.9,3461.8,0.0191311]
[1721151370066,19.32893857,3461.9,3461.8,0.0191311]
[1721151370266,22.21751857,3461.9,3461.8,0.0191311]
[1721151370863,22.21751857,3461.9,3461.8,1.1e-06]
[1721151371076,25.10609857,3461.9,3461.8,1.1e-06]
[1721151371379,25.10609857,3461.9,3459.1,2.385]
[1721151371380,2.89011,3460.1,3459.1,2.385]
[1721151371530,2.89011,3460.1,3458.9,6.16907]
[1721151371531,2.89026,3459.9,3458.9,6.16907]
[1721151371734,2.89026,3459.9,3459.1,2.8909]
[1721151371988,0.02535679,3459.8,3459.1,2.8909]
[1721151373012,3.46577679,3459.8,3458.8,2.89116]
[1721151373218,0.02535679,3459.8,3459.0,2.89098]
[1721151373395,2.89017,3460.0,3459.2,2.89082]
[1721151373760,2.89017,3460.0,3459.0,3.507878]
[1721151373966,3.44016,3460.1,3459.0,0.616898]
[1721151374376,3.44016,3460.1,3459.2,2.89082]
[1721151375264,3.44009,3460.1,3459.0,2.891]
[1721151375482,2.89032,3459.9,3459.0,2.891]
[1721151375821,0.55,3459.8,3459.1,2.89092]
[1721151376011,0.55,3460.0,3459.1,2.89092]
[1721151376214,2.89026,3459.9,3459.1,2.89092]
[1721151376375,0.55,3460.0,3459.2,2.89083]
[1721151376575,0.55,3460.0,3458.7,3.278]
[1721151376576,3.44019,3460.0,3458.7,3.278]
[1721151376775,0.55,3460.0,3459.1,2.89092]
[1721151376973,3.44009,3460.1,3459.3,2.89074]
[1721151377577,0.55,3460.1,3459.3,2.89074]
[1721151377782,3.44001,3460.2,3459.3,2.89074]
[1721151377984,0.55,3460.2,3459.4,2.89066]
[1721151378184,3.0,3460.7,3459.8,2.8903]
[1721151378410,3.0,3460.7,3459.9,2.89022]
[1721151378629,2.88959,3460.7,3459.9,2.89022]
[1721151378789,2.88959,3460.7,3459.6,2.89049]
[1721151378790,3.0,3460.6,3459.7,2.89038]
[1721151379190,3.0,3460.6,3459.7,2.89041]
[1721151379384,3.0,3460.6,3459.9,2.89019]
[1721151379625,3.0,3460.8,3459.9,2.89019]
[1721151379813,2.88944,3460.9,3460.1,2.89008]
[1721151380010,3.0,3460.8,3460.1,2.89008]
[1721151380605,3.0,3461.0,3460.1,2.89008]
[1721151380799,2.88959,3460.7,3459.8,2.89031]
[1721151380995,2.88959,3460.7,3459.7,2.89041]
[1721151380996,3.43948,3460.9,3459.9,2.89019]
[1721151381202,2.88959,3460.7,3459.7,2.89041]
[1721151381524,1.7,3460.6,3459.5,2.89058]
[1721151381730,2.88984,3460.4,3459.5,2.89058]
[1721151381934,1.7,3460.6,3459.7,2.89042]
[1721151382094,0.55,3460.5,3459.8,2.89032]
[1721151382303,0.55,3460.5,3459.6,2.8905]
[1721151382304,2.88984,3460.4,3459.6,2.8905]
[1721151383112,3.0,3461.0,3459.6,0.578115]
[1721151383454,2.88901,3461.4,3460.3,2.88989]
[1721151383609,2.8892,3461.2,3460.1,2.89007]
[1721151383813,2.88942,3460.9,3460.0,2.89014]
[1721151384014,4.58928,3461.1,3460.1,2.89007]
[1721151384250,7.35,3462.7,3461.7,2.88874]
[1721151384420,2.3666,3462.9,3461.8,2.88864]
[1721151384421,4.04655,3462.8,3461.8,2.88864]
[1721151384623,1.7,3462.6,3461.0,2.88933]
[1721151384826,2.88843,3462.1,3461.2,2.88909]
[1721151385229,2.88818,3462.4,3461.2,2.88909]
[1721151385531,4.58802,3462.6,3461.4,2.88897]
[1721151385741,2.88825,3462.3,3461.4,2.88897]
[1721151385915,1.7,3462.6,3461.0,3.278]
[1721151386226,4.58801,3462.6,3461.7,2.88874]
[1721151386802,2.8881,3462.5,3461.7,2.88874]
[1721151387058,2.3666,3462.9,3462.0,2.8885]
[1721151387365,5.25441,3462.9,3462.1,2.8884]
[1721151387716,2.88784,3462.8,3462.1,2.8884]
[1721151387916,2.88784,3462.8,3461.8,2.88864]
[1721151388118,2.88784,3462.8,3462.0,2.88844]
[1721151388357,0.55,3462.7,3462.0,2.88844]
[1721151388737,0.55,3462.7,3462.1,2.8884]
[1721151388917,3.55,3462.8,3462.1,2.8884]
[1721151389122,3.55,3462.8,3462.2,2.8883]
[1721151389123,0.55,3462.8,3462.2,2.8883]
[1721151389432,9.05,3463.5,3462.0,2.88844]
[1721151389433,7.35,3463.5,3462.3,0.0577643]
[1721151389640,2.88684,3464.0,3462.9,2.88774]
[1721151389845,7.35,3464.3,3463.4,2.8873]
[1721151389846,2.88667,3464.2,3463.4,2.8873]
[1721151390023,1.7,3464.3,3463.2,2.8875]
[1721151390229,2.88683,3464.0,3463.1,2.88758]
[1721151390429,2.88676,3464.1,3463.3,2.88735]
[1721151390651,0.02535466,3463.9,3463.3,2.88735]
[1721151390856,0.02587546,3463.8,3463.3,2.88735]
[1721151391022,2.88683,3464.0,3463.1,2.88758]
[1721151391464,1.7,3464.3,3462.5,3.278]
[1721151391465,5.79977546,3463.9,3463.0,2.88766]
[1721151391767,0.02587546,3463.9,3463.2,2.88746]
[1721151391938,2.88684,3464.0,3463.2,2.88746]
[1721151392271,0.02587546,3463.8,3463.2,2.88746]
[1721151392561,0.02587546,3463.7,3463.2,2.88746]
[1721151392725,3.43699,3463.9,3463.0,2.88764]
[1721151393050,0.02587546,3463.6,3463.0,2.88764]
[1721151393263,0.55,3463.9,3463.2,2.88749]
[1721151393427,3.55,3464.1,3463.2,2.88749]
[1721151393740,2.8869,3464.0,3463.2,2.88749]
[1721151394066,0.55,3463.9,3463.2,2.88749]
[1721151394428,0.02623443,3463.8,3463.2,2.88749]
[1721151395784,0.02623443,3463.8,3463.0,3.278]
[1721151395984,2.88655,3464.4,3463.3,2.88741]
[1721151396280,0.02623644,3463.7,3463.6,2.88716]
[1721151396479,9.7281,3464.6,3463.9,2.88684]
[1721151396629,7.35,3464.6,3463.9,2.88684]
[1721151396829,0.02623644,3464.5,3463.9,2.88684]
[1721151397058,0.02623644,3464.5,3463.0,3.278]
[1721151397260,2.88675,3464.1,3463.0,3.278]
[1721151397588,2.8868,3464.1,3463.3,2.88739]
[1721151397747,2.88698,3463.9,3463.0,6.16563]
[1721151397936,6.43702,3463.8,3463.0,6.16563]
[1721151398340,0.02623644,3463.7,3463.0,6.16563]
[1721151398760,0.02623644,3463.7,3463.1,2.88751]
[1721151398968,3.02623644,3463.7,3463.0,6.16563]
[1721151399177,0.55,3463.6,3463.0,3.278]
[1721151399480,0.02623644,3463.7,3463.0,3.278]
[1721151399481,5.8871,3463.7,3463.0,3.278]
[1721151399770,0.55,3463.6,3463.0,3.278]
[1721151399936,0.57623644,3463.6,3463.0,3.278]
[1721151400632,3.46346644,3463.6,3462.6,2.88798]
[1721151400833,3.46346644,3463.6,3462.5,3.278]
[1721151400834,2.8875,3463.2,3462.5,3.278]
[1721151401053,2.8875,3463.2,3462.3,2.88824]
[1721151401483,3.02623644,3463.1,3462.3,2.88824]
[1721151401772,2.8878,3462.9,3462.0,6.16645]
[1721151401988,0.55,3463.0,3462.0,6.16645]
[1721151401989,3.43771,3463.0,3462.1,2.88841]
[1721151402141,2.88775,3462.9,3462.1,2.88841]
[1721151402476,0.55,3462.8,3462.1,2.88841]
[1721151402841,3.0,3463.2,3462.2,2.8883]
[1721151403151,9.7395,3464.0,3462.6,2.888]
[1721151403152,3.0,3463.1,3462.6,2.888]
[1721151403327,0.02623644,3463.1,3462.6,2.888]
[1721151403533,6.43742,3463.3,3462.5,3.278]
[1721151403845,0.02623644,3463.0,3462.5,6.16608]
[1721151404153,0.02623644,3462.9,3462.5,6.16608]
[1721151404355,5.88742,3463.3,3462.5,6.16608]
[1721151404558,0.02623644,3462.8,3462.5,6.16608]
[1721151404760,5.88742,3463.3,3462.5,6.16608]
[1721151404933,0.02623644,3462.7,3462.5,6.16608]
[1721151405338,2.88768,3463.0,3462.1,2.88838]
[1721151405658,0.02623644,3462.6,3462.2,2.88831]
[1721151405862,3.55,3462.9,3462.2,2.88831]
[1721151406051,0.02623644,3462.5,3462.2,2.88831]
[1721151406251,6.43775,3462.9,3462.2,2.88831]
[1721151406454,0.02612151,3462.4,3462.2,2.88831]
[1721151406862,0.02612151,3462.3,3462.2,2.88831]
[1721151407281,0.55,3462.9,3462.2,2.88831]
[1721151407788,0.02612151,3462.8,3462.2,2.88831]
[1721151407955,0.02612151,3462.8,3462.3,2.88823]
[1721151408284,0.02612151,3462.8,3462.4,2.88812]
[1721151408487,0.02612151,3462.8,3462.0,3.278]
[1721151408694,3.0,3463.3,3462.6,2.88799]
[1721151408998,3.0,3463.3,3462.4,2.8881]
[1721151409294,0.02612151,3463.2,3462.6,2.88794]
[1721151409667,0.02612151,3463.2,3462.0,3.278]
[1721151409668,2.88771,3463.0,3462.0,6.16643]
[1721151409847,0.57612151,3463.2,3462.0,3.278]
[1721151409848,0.02612151,3463.2,3462.0,3.278]
[1721151410052,3.0,3463.3,3462.6,2.88794]
[1721151410249,0.02612151,3463.1,3462.6,2.88794]
[1721151410491,3.0,3463.3,3462.2,2.88831]
[1721151410646,0.02612151,3463.0,3462.3,2.88818]
[1721151410853,2.88762,3463.1,3462.3,2.88818]
[1721151411200,3.55,3463.0,3462.3,2.88818]
[1721151411489,3.02612151,3463.0,3462.6,2.88798]
[1721151411692,0.02612151,3463.0,3462.6,2.88798]
[1721151412049,3.0,3463.3,3462.6,2.88798]
[1721151412467,0.02612151,3463.2,3462.6,2.88798]
[1721151413253,0.02612151,3463.2,3462.4,2.88816]
[1721151413489,0.02612151,3463.2,3462.2,2.88829]
[1721151413490,2.88772,3463.0,3462.2,2.88829]
[1721151413664,3.55,3462.9,3462.3,2.88824]
[1721151414111,0.02612151,3462.8,3462.3,2.88824]
[1721151414268,0.02612151,3462.8,3462.3,5.34324]
[1721151415297,0.02612151,3462.8,3462.6,2.88796]
[1721151415503,0.02612151,3462.8,3462.7,2.88791]
[1721151415789,3.0,3463.4,3462.7,2.455]
[1721151416010,2.88734,3463.4,3462.7,2.455]
[1721151416287,2.88734,3463.4,3462.7,5.34291]
[1721151416502,3.0,3463.3,3462.7,5.34291]
[1721151416708,2.88757,3463.2,3462.7,2.455]
[1721151416928,3.0,3463.3,3462.7,2.455]
[1721151416929,5.88744,3463.3,3462.7,2.455]
[1721151417597,5.88744,3463.3,3462.4,2.88809]
[1721151418090,5.88744,3463.3,3462.5,2.88803]
[1721151418496,5.88744,3463.3,3462.6,2.88799]
[1721151419070,0.02599851,3463.2,3462.6,2.88799]
[1721151420007,2.8876,3463.1,3462.4,2.88809]
[1721151420175,0.55,3463.0,3462.4,2.88809]
[1721151420363,0.57599851,3463.0,3462.4,2.88809]
[1721151420563,0.57599851,3463.0,3462.4,5.77621]
[1721151420864,0.57599851,3463.0,3462.4,2.88809]
[1721151421084,2.88775,3462.9,3462.0,2.88842]
[1721151421261,2.88775,3462.9,3462.1,2.88841]
[1721151421461,0.02600254,3462.8,3461.9,2.88854]
[1721151421695,0.02600254,3462.8,3462.2,2.88833]
[1721151422288,0.02600254,3462.8,3462.0,2.88849]
[1721151422289,2.88794,3462.7,3462.0,2.88849]
[1721151422486,5.37844,3462.7,3461.8,2.455]
[1721151422695,5.37844,3462.7,3461.4,5.34393]
[1721151422696,3.55,3462.6,3461.4,5.34393]
[1721151422888,2.88858,3462.0,3461.2,2.88914]
[1721151423093,5.34365,3461.9,3460.8,2.4967]
[1721151423254,2.9144895,3461.9,3461.1,2.88924]
[1721151423457,2.9144895,3461.9,3460.9,2.88934]
[1721151423458,3.55,3461.8,3460.9,2.88934]
[1721151423704,2.88895,3461.5,3460.7,2.88955]
[1721151423980,3.55,3461.8,3460.9,2.88936]
[1721151423981,3.0,3461.4,3460.9,2.88936]
[1721151424189,0.02557686,3461.4,3461.1,2.8892]
[1721151424556,0.02557686,3461.4,3461.3,2.88908]
[1721151424815,2.4905,3462.7,3461.3,7.84075]
[1721151424987,2.88815,3462.5,3461.6,2.88879]
[1721151425477,2.88815,3462.5,3461.8,2.88866]
[1721151425879,2.88826,3462.3,3461.6,2.88877]
[1721151426087,3.0,3462.6,3461.7,2.88875]
[1721151426296,0.55,3462.5,3461.7,2.88875]
[1721151426520,3.0,3462.6,3461.9,2.8885]
[1721151426726,2.88764,3463.1,3462.3,2.88818]
[1721151427027,5.27008,3463.3,3462.5,2.88805]
[1721151427028,2.8875,3463.2,3462.5,2.88805]
[1721151427317,2.8875,3463.2,3462.3,2.88818]
[1721151427318,2.3826,3463.3,3462.3,2.88818]
[1721151427521,2.88751,3463.2,3462.5,2.88802]
[1721151427700,2.88751,3463.2,3462.4,2.88816]
[1721151427900,2.3826,3463.3,3462.5,2.88802]
[1721151428083,5.27003,3463.3,3462.5,2.88802]